Cogmind - Beta 17 *** ADVENTURER MODE // 2026.06.23 @ 11:17:26 Player: Jefffff Result: Destroyed by Y-54 Guardian with Gatling Laser Performance ------------- Evolutions (0) 0 Regions Visited (3) 600 Robots Destroyed (28) 140 Value Destroyed (740) 740 Prototype IDs (4) 80 Alien Tech Used (0) 0 Bonus (0) 0 TOTAL SCORE: 1560 Bonus ------- None Cogmind --------- Core Integrity 0/250 Matter 70/300 Energy 250/250 System Corruption 0% Temperature Cool (18) Movement Rolling (105) Ox1 Location -7/Recycling Parts ------- > --- POWER (1) -------- Ion Engine > --- PROPULSION (2) --- Aluminum Leg Armored Wheel > --- UTILITY (2) ------ Small Storage Unit Improved Propulsion Shielding > --- WEAPON (2) ------- Light Assault Rifle > --- INVENTORY (8) ---- Improved Heat Sink High-capacity Storage Unit Authchip [Propulsion] Authchip [Propulsion] Authchip [Propulsion] Authchip [Device] Authchip [Armor] Authchip [Armor] Peak State ------------ > --- POWER ------------ Light Nuclear Core > --- PROPULSION ------- Armored Wheel Armored Wheel > --- UTILITY ---------- Small Storage Unit Seismic Detector > --- WEAPON ----------- Improved Light Cannon Improved Light Cannon > --- INVENTORY -------- Ion Engine Light Ion Engine Aluminum Leg Armored Wheel High-capacity Storage Unit Improved Targeting Computer Particle Gun Light Assault Rifle [Rating: 14] Favorites ----------- Power Ion Engine Engine Ion Engine Power Core Light Nuclear Core Propulsion Armored Wheel Leg Aluminum Leg Wheel Armored Wheel Utility Small Storage Unit Device Seismic Detector Storage Small Storage Unit Processor Improved Targeting Computer Protection Improved Propulsion Shielding Weapon Improved Light Cannon Energy Gun Particle Gun Energy Cannon Subdweller Beam Cannon Ballistic Gun Light Assault Rifle Ballistic Cannon Improved Light Cannon Build | -11 -10 -10 -7 ------- Run | Yrd Mat Sub Rec Slots Evolved . | . . . . Power . | . . . . Propulsion . | . . . . Utility . | . . . . Weapon . | . . . . Parts Attached 30 | 6 12 10 2 Power 5 | 1 1 3 . Engine 4 | 1 . 3 . Core 1 | . 1 . . Reactor . | . . . . Propulsion 9 | 2 5 2 . Treads . | . . . . Leg 5 | 2 2 1 . Wheel 4 | . 3 1 . Hover . | . . . . Flight . | . . . . Utility 6 | 1 2 1 2 Device 3 | . 2 . 1 Storage 1 | 1 . . . Processor 1 | . . 1 . Hackware . | . . . . Protection 1 | . . . 1 Artifact . | . . . . Weapon 10 | 2 4 4 . Energy Gun 1 | . . 1 . Energy Cannon 1 | . . 1 . Ballistic Gun 3 | 2 . 1 . Ballistic Cannon 5 | . 4 1 . Launcher . | . . . . Special Weapon . | . . . . Impact Weapon . | . . . . Slashing Weapon . | . . . . Piercing Weapon . | . . . . Special Melee Weapon . | . . . . Unidentified Prototypes . | . . . . Parts Lost 7 | . . 6 1 Power 1 | . . 1 . Propulsion 2 | . . 2 . Utility 1 | . . 1 . Weapon 3 | . . 2 1 Highest Loss Streak 3 | . . 3 1 To Critical Strikes . | . . . . Average Backups 6 | 2 7 6 7 Power . | . 1 . . Propulsion 1 | . 2 1 . Utility 3 | . 1 2 7 Weapon 1 | . 1 1 . Tool/Special . | . . . . Unused Backups 15 | . 2 1 12 Power 1 | . . 1 . Propulsion 3 | . 2 . 1 Utility 11 | . . . 11 Weapon . | . . . . Tool/Special . | . . . . Average Slot Usage (%) 99 | . 98 99 99 Engine 9 | . 3 11 14 Core 4 | . 9 2 . Leg 12 | . 22 4 14 Wheel 15 | . 5 23 14 Device 10 | . 13 9 7 Storage 14 | . 14 14 14 Processor 3 | . . 4 6 Energy Gun 5 | . . 4 13 Energy Cannon 1 | . . 2 . Ballistic Gun 11 | . 22 1 14 Ballistic Cannon 10 | . 5 18 . Peak Build Rating 14 | 6 14 14 13 Average Rating 11 | 4 9 12 12 On Entrance 7 | . 6 14 11 Avg Prop Armor Cover (%) 9 | . . 8 9 Naked Turns . | . . . . Heaviest Build 23 | 11 19 23 15 Greatest Support 24 | 20 24 24 12 Greatest Overweight (x) 3 | 3 1 1 1 Average Overweight (x) . | . . . 1 Largest Inventory Capacity 8 | 8 8 8 8 Average Capacity 7 | 7 8 8 8 Most Carried 8 | 4 8 8 8 Average Carried 7 | 2 7 6 7 Final Capacity 8 | 8 8 8 8 Final Carried 8 | 4 8 7 8 Class Distribution -------------------- 100% | Mutant Dominant Class ---------------- Mutant | -10/Materials Mutant | -10/Subcaves Mutant | -7/Recycling Resources | -11 -10 -10 -7 ----------- Run | Yrd Mat Sub Rec Matter Collected 812 | 182 258 372 . Remotely . | . . . . Salvage Created 529 | . 282 247 . Parts 39 | . 17 22 . Haulers Intercepted 1 | . 1 . . Recyclers Shooed . | . . . . Parts Field Recycled . | . . . . Retrieved Matter . | . . . . Parts Self-Destructed 21 | . . 21 . Prevented . | . . . . Parts Restored . | . . . . Kills | -11 -10 -10 -7 ------- Run | Yrd Mat Sub Rec Combat Hostiles Destroyed 24 | . 8 16 . Guns 7 | . 5 2 . Cannons 15 | . 1 14 . AOE 2 | . 2 . . Classes Destroyed 6 | . 5 1 . Hauler 1 | . 1 . . Turret 2 | . . 2 . Watcher 1 | . 1 . . Swarmer 10 | . 3 7 . Grunt 4 | . 2 2 . Subdweller 10 | . 3 7 . Best Kill Streak 6 | . 3 6 . Combat Bots Only 4 | . 3 4 . Max Kills in Single Turn 2 | . 2 2 . Gunslinging 1 | . 1 . . Exploded 2 | . 2 . . Melee . | . . . . Uniques/NPCs Destroyed . | . . . . Combat | -11 -10 -10 -7 -------- Run | Yrd Mat Sub Rec Hostile Shots Fired 236 | . 46 124 66 Missed 80 | . 16 40 24 Hits 156 | . 30 84 42 Projectile 156 | . 30 84 42 Critical Strikes 3 | . 1 2 . Damage Taken 1480 | . 427 812 241 Core 257 | . 61 105 91 Absorbed by Shields . | . . . . Redirected to Shielding 22 | . . . 22 Ignored by Resistances 450 | . 121 244 85 Regen/Repaired (Parts) 41 | . 41 . . Core Remaining (%) 100 | 100 . . . Volleys Fired 105 | 1 30 69 5 Largest 2 | 2 2 2 2 Hottest 113 | 40 66 113 85 Shots Fired 201 | 2 58 134 7 Gun 82 | 2 49 24 7 Cannon 119 | . 9 110 . Launcher . | . . . . Special . | . . . . Kinetic 168 | 2 58 103 5 Thermal 33 | . . 31 2 Explosive . | . . . . Electromagnetic . | . . . . Robot Hit Streak 28 | 2 11 21 28 Robot Miss Streak 4 | . 4 3 . Penetration Max . | . . . . Secondary Targets 2 | . 2 . . Max Gunslinging Chain 1 | . 1 . . Shots Hit Robots 135 | 2 40 86 7 Core Hits 46 | . 16 27 3 Critical Kills . | . . . . Critical Parts Destroyed . | . . . . Critical Strikes 5 | . 1 4 . Blast 5 | . 1 4 . Melee Attacks . | . . . . Impact . | . . . . Slashing . | . . . . Piercing . | . . . . Sneak Attacks . | . . . . Combat Hostiles . | . . . . Follow-up Attacks . | . . . . Damage Inflicted 2162 | 17 524 1550 71 Guns 663 | 17 356 219 71 Cannons 1499 | . 168 1331 . Explosions . | . . . . Melee . | . . . . Ramming . | . . . . Kinetic 1857 | 17 524 1275 41 Thermal 305 | . . 275 30 Explosive . | . . . . Electromagnetic . | . . . . Impact . | . . . . Slashing . | . . . . Piercing . | . . . . Highest Corruption . | . . . . Average Corruption . | . . . . Corruption Purged . | . . . . Corruption Blocked . | . . . . Overload Shots . | . . . . Overflow Damage . | . . . . Projectiles . | . . . . Explosions . | . . . . Melee . | . . . . Knockbacks 10 | . 2 8 . Impact . | . . . . Kinetic 10 | . 2 8 . Secondary . | . . . . Self-Inflicted Damage . | . . . . Shots . | . . . . Rammed . | . . . . Targets Rammed . | . . . . Kicked . | . . . . Crushed . | . . . . Highest Temperature 295 | . 295 20 34 Average Temperature 86 | . 140 9 16 Received Heat Transfer 764 | . 374 288 102 Effects 3 | . 3 . . Interference 3 | . 3 . . Siege Activations . | . . . . Martial Activations . | . . . . Shielding Activations . | . . . . Robots Disrupted . | . . . . Combat Hostiles . | . . . . Robots Corrupted . | . . . . Combat Hostiles . | . . . . Parts Fried . | . . . . Impact Corruptions . | . . . . Robots Melted . | . . . . Combat Hostiles . | . . . . Parts Melted . | . . . . Heat Transferred 666 | . . 592 74 Parts Sabotaged . | . . . . Parts Stolen . | . . . . Parts Stripped . | . . . . Power Chain Reactions . | . . . . Alert | -11 -10 -10 -7 ------- Run | Yrd Mat Sub Rec Maximum Alert Level . | . . . . Low Security (%) 100 | 100 100 . 100 Level 1 . | . . . . Level 2 . | . . . . Level 3 . | . . . . Level 4 . | . . . . Level 5 . | . . . . High Security . | . . . . Max Security . | . . . . Peak Influence 77 | . 77 . 12 Initial . | . . . . Average 7 | . 13 . . Influence Increases 479 | . 145 315 19 Destroy 0b10 Robot/C 320 | . 100 220 . Destroy 0b10 Robot/NC 10 | . 10 . . Destroy Leader 44 | . 24 20 . Successful Hack 30 | . 11 . 19 Lose Combat Pursuer 75 | . . 75 . Influence Decreases 479 | . 145 315 19 Time Decay 434 | . 145 270 19 Lost Part 45 | . . 45 . Squads Dispatched . | . . . . Investigation . | . . . . Extermination . | . . . . Reinforcement . | . . . . Assault . | . . . . Garrison . | . . . . Intercept . | . . . . Searches Triggered . | . . . . Construction Impeded . | . . . . Haulers Reinforced . | . . . . Active Scanning Responses . | . . . . Cargo Convoy Interrupts . | . . . . Stealth | -11 -10 -10 -7 --------- Run | Yrd Mat Sub Rec Distress Signals 2 | . 2 . . Communications Jammed . | . . . . Distress Signals . | . . . . Times Spotted 34 | . 13 19 2 Peak Tracking Total 6 | . 4 6 2 Tactical Retreats 2 | . . 2 . Traps | -11 -10 -10 -7 ------- Run | Yrd Mat Sub Rec Traps Triggered . | . . . . Indirectly . | . . . . Trap Hack Attempts . | . . . . Triggered . | . . . . Disarmed . | . . . . Reprogrammed . | . . . . Reused . | . . . . Traps Extracted . | . . . . Installed . | . . . . Triggered . | . . . . Machines | -11 -10 -10 -7 ---------- Run | Yrd Mat Sub Rec Machines Disabled 2 | . . 2 . Max in Single Turn 1 | . . 1 . Machines Repaired . | . . . . Machines Dismantled . | . . . . Machines Sabotaged . | . . . . Overloaded Fab Kills . | . . . . Hacking | -11 -10 -10 -7 --------- Run | Yrd Mat Sub Rec Machines Accessed 7 | . 4 . 3 Terminals 6 | . 3 . 3 Fabricators . | . . . . Repair Stations 1 | . 1 . . Recycling Units . | . . . . Scanalyzers . | . . . . Garrison Access . | . . . . Total Hacks 15 | . 9 . 6 Successful 11 | . 8 . 3 Failed 4 | . 1 . 3 Catastrophic 1 | . . . 1 Database Lockouts . | . . . . Manual 9 | . 4 . 5 Terminals 13 | . 7 . 6 Fabricators . | . . . . Repair Stations 2 | . 2 . . Recycling Units . | . . . . Scanalyzers . | . . . . Garrison Access . | . . . . Terminal Hacks 4 | . 3 . 1 Prototype ID Bank 2 | . 2 . . Terminal Index 1 | . . . 1 Zone Layout 1 | . 1 . . Fabricator Hacks . | . . . . Repair Station Hacks 2 | . 2 . . Scan Component 1 | . 1 . . Repair 1 | . 1 . . Recycling Unit Hacks . | . . . . Scanalyzer . | . . . . Garrison Access Hacks . | . . . . Unauthorized Hacks 5 | . 3 . 2 Terminals 5 | . 3 . 2 Botnet 5 | . 3 . 2 Fabricators . | . . . . Repair Stations . | . . . . Recycling Units . | . . . . Scanalyzers . | . . . . Garrison Access . | . . . . Data Cores Recovered . | . . . . Used . | . . . . Hacking Detections 5 | . 2 . 3 Full Trace Events . | . . . . Feedback Events . | . . . . Feedback Blocked . | . . . . Robot Schematics Acquired . | . . . . Robots Built . | . . . . Authchips . | . . . . Time . | . . . . Total Robot Build Rating . | . . . . Part Schematics Acquired . | . . . . Parts Built . | . . . . Authchips . | . . . . Time . | . . . . Total Part Build Rating . | . . . . Part Studies Acquired . | . . . . Parts Repaired 1 | . 1 . . Time 38 | . 38 . . Parts Recycled . | . . . . Recycled Matter . | . . . . Retrieved Matter . | . . . . Retrieved Components . | . . . . Parts Scanalyzed . | . . . . Part Schematics Acquired . | . . . . Parts Damaged . | . . . . Bothacking | -11 -10 -10 -7 ------------ Run | Yrd Mat Sub Rec Used RIF Installer . | . . . . Robots Hacked . | . . . . Non-combat . | . . . . Combat . | . . . . Robot Hacks Applied . | . . . . Relay Couplers Released . | . . . . Fabnet Peak Effective % . | . . . . Robots Rewired . | . . . . Allies Hacked . | . . . . Hacks Repelled . | . . . . Allies | -11 -10 -10 -7 -------- Run | Yrd Mat Sub Rec Total Allies . | . . . . Largest Group . | . . . . Highest-Rated Group . | . . . . Highest-Rated Ally . | . . . . Total Orders . | . . . . Ally Attacks . | . . . . Total Damage . | . . . . Kills . | . . . . Allies Corrupted . | . . . . Allies Melted . | . . . . Intel | -11 -10 -10 -7 ------- Run | Yrd Mat Sub Rec Active Infowar (turns) 1035 | . 354 681 . Seismic 1035 | . 354 681 . Robot Analysis Total . | . . . . Derelict Logs Recovered 1 | . . 1 . Drone Launches . | . . . . Drone Recoveries . | . . . . Exploration | -11 -10 -10 -7 ------------- Run | Yrd Mat Sub Rec Turns Passed 2342 | 57 718 1044 523 Spaces Moved 1819 | 34 450 864 471 Core 8 | 8 . . . Treads . | . . . . Legs 420 | 26 394 . . Wheels 1391 | . 56 864 471 Hover . | . . . . Flight . | . . . . Fastest Speed 50 | 50 90 90 105 Average Speed 103 | 123 116 94 105 Slowest Speed 200 | 200 120 105 105 Overloaded Moves . | . . . . Propulsion Burnouts . | . . . . Robots Hopped . | . . . . Potential Cave-ins . | . . . . Cave-ins Triggered . | . . . . Exploration Rate (%) 48 | 3 75 43 73 Regions Visited 3 Branch Regions 2 Pre-discovered Areas . | . . . . Known Exits Taken . | . . . . Unknown Exits Taken 3 | 1 1 1 . Scrap Searched 1 | . . 1 . Spaces Dug . | . . . . Terrain Destroyed 1 | . . 1 . Melee . | . . . . Projectile 1 | . . 1 . AOE . | . . . . Terrain Rammed . | . . . . Walls Destroyed . | . . . . Machines Disabled . | . . . . Actions | -11 -10 -10 -7 --------- Run | Yrd Mat Sub Rec Total 2091 | 44 593 958 496 Wait 91 | . 84 4 3 Move 1816 | 33 449 863 471 Hop . | . . . . Pick Up 26 | 4 7 7 8 Fast Attach 7 | 6 1 . . Attach 8 | . 1 7 . Detach . | . . . . Swap 18 | . 12 4 2 Drop 20 | . 9 4 7 Fire 105 | 1 30 69 5 Melee . | . . . . Ram . | . . . . Kick . | . . . . Crush . | . . . . Escape Stasis . | . . . . Rewire . | . . . . Trap . | . . . . Miscellaneous . | . . . . Route ------- -11/Scrapyard -10/Materials (discovered 5 exits: [*Mat x2] / [*Min x2] / [*Sub]) -10/Subcaves (discovered 2 exits: [*Mat] / *Rec) -7/Recycling History --------- Turn | Location | Event 17 | -11/Scrapyard | Discovered new exit (range 16) 58 | -11/Scrapyard | Entered Materials 174 | -10/Materials | Discovered new exit (range 13) 251 | -10/Materials | Discovered new exit (range 15) 300 | -10/Materials | Build established: Mutant 365 | -10/Materials | Discovered new exit (range 10) 486 | -10/Materials | Discovered new exit (range 15) 558 | -10/Materials | Derelicts attacked the area 721 | -10/Materials | Repaired Lgt. Nuclear Core 725 | -10/Materials | Discovered new exit (range 6) 776 | -10/Materials | Entered Subcaves 949 | -10/Subcaves | Disturbed a concealed Subdweller 1087 | -10/Subcaves | Shifting Twisted Machinery released Sub. Machine Gun 1097 | -10/Subcaves | Shifting Twisted Machinery released Sub. Machine Gun 1144 | -10/Subcaves | Core integrity fell below 50% 1369 | -10/Subcaves | A swath of the cavern ceiling suddenly collapsed 1476 | -10/Subcaves | Discovered new exit (range 9) 1520 | -10/Subcaves | Lost 3 parts (2n1u) 1554 | -10/Subcaves | Shifting Twisted Machinery released Sub. Optics 1572 | -10/Subcaves | Discovered new exit (range 7) 1820 | -10/Subcaves | Entered Recycling 1821 | -7/Recycling | Met a Zionite searching for Scraptown 2339 | -7/Recycling | Core integrity fell below 20% 2343 | -7/Recycling | Destroyed by Y-54 Guardian with Gatling Laser Last Messages --------------- 02043_ Discarded Imp. Targeting Computer. 02043_ Acquired Imp. Heat Sink. 02052_ Connecting with Terminal... 02052_ Current location identified: Recycling >>Trojan(Botnet) Trojan loaded successfully. Testing... Terminal linked with 0 systems. Awaiting botnet instructions. 02069_ Connecting with Terminal... >>Trojan(Botnet) Trojan loaded successfully. Testing... Terminal linked with 1 system. Awaiting botnet instructions. >>Index(Terminals) Found 4 terminals. Downloaded coordinate data. 02330_ Y-54 Guardian springs to life. 02335_ Particle Gun destroyed. Map ----- +----------------------------------------------------+ | "" ""## ##+##+# ### | | "" Y"## # + #?? | | " ""## #### # ##### #?? | | ## #??? # #????+#+##+#?? | | ########## #??? + #????????????? | | ?????????# #????##### #! #????????????? | | ?????????# #????????# # ! #????????????? | | ?????????# ####+###?# +& ! !#????????????? | | ?????????# # #?# #### & #????????????? | | ?????????# # ### #### #????????????? | | ??######?# # + ""## #????????????? | | ?""" """?+ # " ###### Y"## #????????????? | | ?""" """ # # ""#????# ""## #????????????? | | """ """ # # ""#????# #### #????????????? | | + + """#????# #??# ! #????????????? | | # # "" #?#### ##?# #????????????? | | # # """#?# #####+############???? | | # # """#?# ? | | # # """#?# ? | | ########## # " #?# ? | | ???????#"" # #?# ############### # ##?? | | ########"Y ########?## ##????????????????????? | | ##"" !!#??????# #?????????????????????? | | #### !!#??????##Y #?????????????????????? | | #??# =#???????# #?????????????????????? | | #??# ###???????# @ #?????????????????????? | | #??# #?????????# #?????????????????????? | | #??# #?????????# Y#?????????????????????? | | #??# #?????????# ?????????????????????? | | #?## ##????????# ##????????????????????? | | +######## ####?????# #?????????????????????? | | ?????????????????????? | | ?????????????????????? | | ?????????????????????? | | ######### ############"Y?????????????????????? | | ????????#######???????????"""????????????????????? | | ??????????????????????????###????????????????????? | | ?????????????????????????????????????????????????? | | ?????????????????????????????????????????????????? | | | | | | | | | | | | | | | | | | | | | | | +----------------------------------------------------+ Best States ------------- Heat Dissipation 39 Energy Generation 15 Energy Capacity 250 Matter Stores 249 Matter Capacity 300 Sight Range 16 Terrain Scan Density 10 Resistance: KI 20 Resistance: TH 20 Resistance: EX 20 Resistance: EM 20 Resistance: I 20 Resistance: S 20 Resistance: P 20 Propulsion Shielding 66 Evasion (%) 55 Targeting Accuracy 6 Offensive Hacking 10 Authchip Count 6 Item Schematics ----------------- None Robot Schematics ------------------ None Fabricated ------------ Nothing Repaired ---------- Lgt. Nuclear Core | 18% | -10/Materials Studied --------- None Alien Tech Used ----------------- None Achievements -------------- None Challenges ------------ None Game ------ Seed CryofiberCorruptionBiocell Manual? 0 Play Time 00:14:31 Cumulative 279.2 hours Start 2026.06.23 @ 08:26:58 End 2026.06.23 @ 11:17:26 Sessions 2 Manual Loads 0 Difficulty Adventurer Special Mode None Game No. 328 Rogue 0 Adventurer 328 Explorer 0 Win Type - Total 0 Types 0/0/0/0/0/0/0/0/0/0 Lore% 74 Gallery% 57 Achievement% 38 Wizard Run 0 Options --------- Layout 2 ASCII 0 Keyboard 0 Movement Mouse Keybinds 0 Fullscreen 2 Font 48/Smallcaps Map View 50x44 Zoom Use 0% Tactical HUD 1 Map Filters NONE Filters NONE Steam 1 RUN: 20b0919c-63d2-4c13-b68a-4c3763e8bda5